bitfinex/quotes_SOLUSD_20250915
["timestamp","ask_amount","ask_price","bid_price","bid_amount"]
[1757922754429,0.03,238.26,238.21,4.19788021]
[1757922754621,0.75,238.26,238.22,34.84]
[1757922754818,0.72,238.25,238.19,4.19818055]
[1757922755157,0.03,238.26,238.2,0.72]
[1757922755719,0.03,238.26,238.12,0.72]
[1757922755720,13.59559401,238.24,238.12,0.72]
[1757922755918,13.59559401,238.22,238.13,4.19938688]
[1757922756123,0.72,238.21,238.13,14.6978541]
[1757922756371,0.72,238.2,238.13,14.6978541]
[1757922756543,13.59559401,238.19,238.13,14.6978541]
[1757922756728,13.59559401,238.23,238.14,0.72]
[1757922757127,13.59559401,238.23,238.16,26.0]
[1757922757350,0.03,238.26,238.17,0.72]
[1757922757552,13.62559401,238.26,238.17,35.56]
[1757922757760,14.34559401,238.26,238.17,35.56]
[1757922758138,14.34559401,238.26,238.18,14.69476866]
[1757922758635,0.66,238.25,238.18,14.69476866]
[1757922759541,0.03,238.26,238.19,0.67]
[1757922759742,0.66,238.25,238.18,14.69476866]
[1757922760320,0.66,238.24,238.17,39.03867193]
[1757922760840,13.59559401,238.24,238.17,50.20537596]
[1757922761753,13.59559401,238.22,238.16,26.0]
[1757922761922,13.59559401,238.22,238.05,34.59942187]
[1757922761923,14.25559401,238.22,238.14,34.82]
[1757922762424,14.25559401,238.22,238.15,4.19903422]
[1757922762830,14.25559401,238.22,238.15,14.69661977]
[1757922763636,0.66,238.24,238.15,14.69661977]
[1757922764442,0.66,238.24,238.18,26.0]
[1757922764643,0.03,238.26,238.18,26.0]
[1757922764827,13.59559401,238.24,238.18,26.0]
[1757922765443,0.66,238.24,238.18,26.0]
[1757922766446,13.59559401,238.23,238.19,4.19832906]
[1757922766624,13.59559401,238.23,238.19,14.69415172]
[1757922766824,13.59559401,238.25,238.2,0.67]
[1757922767039,0.03,238.26,238.2,0.67]
[1757922767742,0.03,238.26,238.19,38.99832906]
[1757922768159,0.03,238.26,238.19,49.49415172]
[1757922768453,18.452875,238.25,238.19,38.99825949]
[1757922768752,14.25559401,238.25,238.19,38.99825949]
[1757922769457,14.25559401,238.25,238.19,4.19825949]
[1757922770935,14.25559401,238.25,238.18,4.19850533]
[1757922772263,14.25559401,238.25,238.18,15.36476866]
[1757922772428,13.62559401,238.26,238.18,15.36476866]
[1757922773236,0.66,238.25,238.18,14.69476866]
[1757922775161,13.62559401,238.26,238.18,15.36476866]
[1757922776342,0.69,238.26,238.2,4.19815281]
[1757922776534,0.66,238.25,238.18,4.19850533]
[1757922776736,0.03,238.26,238.11,20.99812699]
[1757922776737,13.59559401,238.23,238.13,34.76]
[1757922776933,13.59559401,238.21,238.13,35.47]
[1757922778049,0.69,238.2,238.13,35.47]
[1757922778249,0.69,238.2,238.14,4.19921054]
[1757922778642,0.69,238.2,238.14,14.69723691]
[1757922779044,0.69,238.23,238.14,14.69723691]
[1757922779244,13.59559401,238.21,238.14,14.69723691]
[1757922780239,0.69,238.21,238.14,14.69723691]
[1757922780440,13.59559401,238.19,238.14,4.19921054]
[1757922780650,0.69,238.19,238.14,4.19921054]
[1757922781058,0.69,238.19,238.14,14.69723691]
[1757922781253,0.69,238.21,238.14,15.40723691]
[1757922781459,13.59559401,238.24,238.15,0.71]
[1757922781842,0.03,238.26,238.17,26.0]
[1757922782043,13.62559401,238.26,238.18,35.47]
[1757922782457,13.62559401,238.26,238.19,14.69415172]
[1757922782648,13.62559401,238.26,238.19,15.40415172]
[1757922783281,0.03,238.26,238.2,0.71]
[1757922783470,0.03,238.26,238.22,26.0]
[1757922783773,0.03,238.26,238.23,0.71]
[1757922784177,0.03,238.26,238.24,0.71]
[1757922784363,0.03,238.26,238.25,30.19727177]
[1757922784563,0.03,238.26,238.25,30.90727177]
[1757922785080,0.03,238.26,238.25,30.19727177]
[1757922785873,0.03,238.26,238.22,34.74]
[1757922785874,0.72,238.26,238.22,4.19769398]
[1757922786076,0.72,238.26,238.24,34.74]
[1757922786404,0.03,238.26,238.25,4.19727177]
[1757922786558,0.03,238.26,238.19,0.71]
[1757922786765,0.03,238.26,238.07,20.0]
[1757922786766,0.69,238.25,238.16,0.71]
[1757922786988,13.59559401,238.24,238.15,14.69661977]
[1757922787191,0.69,238.23,238.16,34.74]
[1757922787694,13.59559401,238.24,238.17,0.71]
[1757922787879,0.03,238.26,238.19,26.0]
[1757922788068,0.03,238.26,238.2,35.43]
[1757922788685,0.71,238.25,238.2,34.72]
[1757922788939,0.71,238.24,238.19,4.19829723]
[1757922789191,0.03,238.26,238.16,34.72]
[1757922789192,0.71,238.23,238.16,34.72]
[1757922789386,13.59559401,238.21,238.14,49.41723691]
[1757922790059,26.03,238.26,238.15,0.68]
[1757922790060,13.59559401,238.25,238.15,0.68]
[1757922790988,13.59559401,238.25,238.16,14.69600268]
[1757922791154,13.59559401,238.25,238.17,0.68]
[1757922791361,13.59559401,238.25,238.18,34.72]
[1757922792081,13.59559401,238.25,238.19,0.68]
[1757922792287,0.03,238.26,238.19,0.68]
[1757922792469,0.03,238.26,238.21,26.0]
[1757922792670,0.74,238.26,238.21,26.0]
[1757922792867,0.03,238.26,238.21,26.0]
[1757922793071,0.03,238.26,238.23,14.6916845]
[1757922793476,0.03,238.26,238.23,15.3716845]
[1757922794158,0.03,238.26,238.24,0.68]
[1757922795066,0.03,238.26,238.25,26.0]
[1757922795386,0.03,238.26,238.24,4.19744795]
[1757922795581,0.03,238.26,238.16,34.7]
[1757922795582,13.59559401,238.24,238.16,34.7]
[1757922796062,13.59559401,238.22,238.16,34.7]
[1757922796571,0.71,238.25,238.16,35.38]
[1757922796774,13.59559401,238.24,238.16,35.38]
[1757922797085,13.59559401,238.22,238.13,0.06]
[1757922797263,13.59559401,238.2,238.13,0.06]
[1757922797664,0.71,238.2,238.13,4.25934821]
[1757922798864,0.71,238.2,238.13,14.75781543]
[1757922799200,13.59559401,238.18,238.13,14.75781543]
[1757922799359,14.30559401,238.18,238.13,14.75781543]
[1757922801083,0.71,238.23,238.14,0.68]
[1757922801382,13.59559401,238.22,238.14,0.68]
[1757922802388,13.59559401,238.22,238.17,14.69538564]
[1757922802576,13.62559401,238.26,238.18,0.68]
[1757922803397,13.59559401,238.24,238.17,4.19868161]
[1757922803599,0.71,238.23,238.17,14.69538564]
[1757922804095,13.59559401,238.22,238.17,14.69538564]
[1757922804270,0.71,238.21,238.17,14.69538564]
[1757922804471,0.71,238.2,238.14,4.1990353]
[1757922804672,0.71,238.19,238.14,4.1990353]
[1757922804873,13.59559401,238.21,238.14,14.69706167]
[1757922805601,0.71,238.2,238.14,14.69706167]
[1757922806504,0.71,238.2,238.14,40.69706167]
[1757922806705,0.71,238.23,238.14,40.69706167]
[1757922807411,13.59559401,238.22,238.14,40.69706167]
[1757922807710,4.19747188,238.24,238.14,40.69706167]
[1757922807909,0.71,238.22,238.14,40.69706167]
[1757922809691,13.59559401,238.21,238.14,40.69706167]
[1757922809889,14.30559401,238.21,238.14,40.69706167]
[1757922811505,26.03,238.26,238.14,40.69706167]
[1757922811506,0.71,238.24,238.15,0.68]
[1757922811711,0.71,238.24,238.14,40.69706167]
[1757922811923,13.59559401,238.2,238.13,0.06]
[1757922812229,13.59559401,238.16,238.13,0.06]
[1757922812589,0.71,238.15,238.13,0.06]
[1757922812783,43.79480455,238.14,238.13,0.06]
[1757922813186,44.50480455,238.14,238.13,0.06]
[1757922814307,74.94559401,238.14,238.13,0.06]
[1757922814504,79.14480455,238.14,238.13,0.06]
[1757922816620,39.59559401,238.11,238.08,0.06]
[1757922816944,39.59559401,238.11,237.98,0.06]
[1757922816945,42.34348232,238.1,237.98,0.06]
[1757922817226,13.59559401,238.05,237.98,0.06]
[1757922817429,13.59559401,238.03,237.98,0.06]
[1757922817636,26.0,238.07,237.98,0.06]
[1757922817938,13.59559401,238.01,237.98,0.06]
[1757922818110,13.59559401,238.04,237.98,0.06]
[1757922818319,13.59559401,238.04,237.98,4.94190681]
[1757922818812,13.59559401,238.07,237.98,14.76699127]
[1757922819120,13.59559401,238.07,237.99,0.7]
[1757922819524,35.33,238.11,238.01,26.0]
[1757922819695,13.59559401,238.1,238.02,0.7]
[1757922820700,13.59559401,238.1,238.03,4.20115111]
[1757922820900,13.59559401,238.1,238.03,14.70402889]
[1757922821110,13.59559401,238.12,238.04,0.7]
[1757922821625,14.28559401,238.12,238.03,4.20115111]
[1757922821813,14.28559401,238.12,238.03,14.70402889]
[1757922822009,13.59559401,238.12,238.04,0.7]
[1757922822816,13.59559401,238.12,238.05,14.70279352]
[1757922823231,13.59559401,238.12,238.05,15.40279352]
[1757922823406,13.59559401,238.14,238.06,0.7]
[1757922825037,0.69,238.16,238.07,14.70155835]
[1757922825238,14.28559401,238.15,238.07,14.70155835]
[1757922825428,14.28559401,238.15,238.07,15.40155835]
[1757922827553,0.69,238.17,238.08,0.7]
[1757922827725,13.59559401,238.19,238.08,0.7]
[1757922828133,13.59559401,238.19,238.1,26.0]
[1757922828333,13.59559401,238.19,238.11,0.7]
[1757922828831,13.62559401,238.2,238.11,0.7]
[1757922829046,0.69,238.19,238.11,0.7]
[1757922829235,0.03,238.2,238.12,14.69847135]
[1757922829442,0.03,238.2,238.13,0.7]
[1757922830443,0.03,238.2,238.15,26.0]
[1757922830639,0.72,238.2,238.15,26.0]
[1757922830839,0.69,238.19,238.12,41.39847135]
[1757922831154,0.03,238.2,238.12,41.39847135]
[1757922831834,0.72,238.2,238.12,41.39847135]
[1757922832637,0.03,238.2,238.13,0.7]
[1757922832856,0.03,238.2,238.14,14.69723691]
[1757922833657,0.69,238.19,238.12,26.06]
[1757922833966,13.59559401,238.17,238.12,0.06]
[1757922834255,0.03,238.2,238.12,0.06]
[1757922834256,13.59559401,238.15,238.12,0.06]
[1757922834438,13.59559401,238.13,238.12,0.06]
[1757922834858,0.69,238.13,238.12,0.06]
[1757922835539,0.69,238.16,238.12,0.06]
[1757922835742,13.59559401,238.15,238.12,4.25952816]
[1757922836046,14.28559401,238.15,238.12,4.25952816]
[1757922838040,13.59559401,238.15,238.12,0.06]
[1757922838237,0.69,238.14,238.12,0.06]
[1757922838460,13.59559401,238.16,238.12,0.06]
[1757922839044,13.59559401,238.16,238.12,4.25952772]
[1757922839246,13.59559401,238.18,238.12,4.95952772]
[1757922839562,13.59559401,238.18,238.12,4.25952772]
[1757922839947,13.59559401,238.18,238.12,14.75843583]
[1757922840268,13.59559401,238.16,238.12,0.06]
[1757922840440,0.7,238.18,238.12,0.06]
[1757922840643,14.29559401,238.18,238.12,4.25956003]
[1757922840842,0.03,238.2,238.12,30.95956003]
[1757922841261,0.03,238.2,238.12,41.45846814]
[1757922841476,13.59559401,238.18,238.12,41.45846814]
[1757922841863,13.59559401,238.16,238.12,0.06]
[1757922842068,14.29559401,238.16,238.12,4.25950562]
[1757922842262,14.29559401,238.16,238.12,0.06]
[1757922842463,14.29559401,238.16,238.12,4.25953399]
[1757922842862,0.03,238.2,238.12,4.25953399]
[1757922842863,0.7,238.19,238.12,4.25953399]
[1757922843056,14.29559401,238.19,238.12,14.7584421]
[1757922843284,13.59559401,238.18,238.12,14.7584421]
[1757922843767,4.22821909,238.2,238.12,0.06]
[1757922843970,14.29559401,238.19,238.12,0.06]
[1757922844167,4.19850533,238.18,238.12,0.06]
[1757922844690,39.59559401,238.15,238.12,0.06]
[1757922845070,13.59559401,238.13,238.12,0.06]
[1757922845471,0.7,238.13,238.12,0.06]
[1757922846376,4.89938688,238.13,238.12,0.06]
[1757922848985,14.29559401,238.13,238.12,0.06]
[1757922849185,48.85559401,238.13,238.12,0.06]
[1757922849494,53.05498089,238.13,238.12,0.06]
[1757922852668,18.49498089,238.13,238.12,0.06]
[1757922852975,13.59559401,238.13,238.12,0.06]
[1757922853175,52.99498089,238.13,238.12,0.06]
[1757922853375,52.33498089,238.13,238.12,0.06]
[1757922853599,48.13559401,238.13,238.12,0.06]
[1757922854095,13.59559401,238.12,238.09,0.06]
[1757922854497,13.59559401,238.1,238.09,0.06]
[1757922854791,48.13559401,238.1,238.09,0.06]
[1757922855092,52.99551001,238.1,238.09,0.06]
[1757922858494,48.79559401,238.1,238.09,0.06]
[1757922858668,52.99551001,238.1,238.09,0.06]
[1757922859073,26.0,238.1,238.09,0.06]
[1757922859288,74.11559401,238.1,238.09,0.06]
[1757922860378,39.59559401,238.1,238.09,0.06]
[1757922860575,40.25559401,238.1,238.09,0.06]
[1757922860897,17.79586282,238.08,238.07,0.06]
[1757922861074,52.31586282,238.08,238.07,0.06]
[1757922861271,52.97586282,238.08,238.07,0.06]
[1757922861981,59.15317728,238.08,238.07,1e-08]
[1757922864403,39.59559401,238.04,237.98,0.06]
[1757922864604,13.59559401,238.02,237.98,0.06]
[1757922864915,39.59559401,238.0,237.98,0.06]
[1757922865205,48.11559401,237.99,237.98,0.06]
[1757922865413,13.59559401,237.99,237.98,0.74]
[1757922865584,48.11559401,237.99,237.98,0.06]
[1757922866085,13.59559401,237.99,237.98,0.74]
[1757922867478,14.25559401,237.99,237.95,0.06]
[1757922867819,39.59559401,237.95,237.89,0.2]
[1757922868009,39.59559401,237.9,237.89,0.2]
[1757922868321,83.5253387,237.9,237.89,0.2]
[1757922869299,21.5453387,237.9,237.89,0.88]
[1757922869509,13.59559401,237.93,237.89,0.88]
[1757922869717,0.66,237.97,237.9,0.68]
[1757922869718,40.16225299,237.97,237.9,0.68]
[1757922869915,0.66,238.0,237.95,0.06]
[1757922869916,13.59559401,237.96,237.95,0.06]
[1757922870122,26.0,237.98,237.95,0.74]
[1757922870123,13.59559401,237.97,237.95,0.74]
[1757922870616,17.79740049,238.0,237.95,0.74]
[1757922870926,62.14,238.01,237.95,0.74]
[1757922870927,13.59559401,238.01,237.95,0.74]
[1757922871124,13.59559401,238.01,237.96,0.68]
[1757922871332,13.59559401,238.02,237.97,0.68]
[1757922871629,36.14,238.04,237.98,0.68]
[1757922871630,17.79664166,238.04,237.98,0.68]
[1757922871930,39.59559401,238.03,237.95,4.94246917]
[1757922872311,39.59559401,238.03,237.95,0.74]
[1757922872946,39.59559401,238.03,237.95,4.94248391]
[1757922873110,0.66,238.02,237.95,0.06]
[1757922873313,13.59559401,237.97,237.95,0.06]
[1757922873806,13.59559401,237.99,237.95,0.74]
[1757922874832,39.59559401,238.0,237.95,0.74]
[1757922875639,36.9,238.03,237.96,0.68]
[1757922875946,158.48126797,238.16,237.96,0.68]
[1757922875947,13.59559401,238.02,237.96,0.68]
[1757922876103,43.79639216,238.05,237.96,0.68]
[1757922876303,13.59559401,238.02,237.96,0.68]
[1757922877637,13.59559401,238.04,237.97,4.20221036]
[1757922879224,13.59559401,238.04,237.96,0.68]
[1757922879642,13.59559401,238.04,237.96,4.88234749]
[1757922879935,13.59559401,238.04,237.97,0.71]
[1757922880512,39.59559401,238.05,237.97,0.71]
[1757922881539,30.92067264,238.06,237.97,0.71]
[1757922881740,39.59559401,238.05,237.98,4.20203378]
[1757922882643,43.79649722,238.05,237.98,4.20203378]
[1757922883138,13.59559401,238.07,237.99,0.71]
[1757922883635,13.59559401,238.08,237.99,0.71]
[1757922884754,13.59559401,238.08,238.0,4.20168067]
[1757922885647,13.59559401,238.08,238.01,0.71]
[1757922885846,13.59559401,238.11,238.01,0.71]
[1757922886237,0.03,238.12,238.01,0.71]
[1757922886238,13.62559401,238.12,238.03,26.0]
[1757922886436,13.62559401,238.12,238.04,0.71]
[1757922886629,13.62559401,238.12,238.05,4.20079815]
[1757922886829,13.62559401,238.12,238.06,0.71]
[1757922887358,0.03,238.12,238.06,0.71]
[1757922888428,0.03,238.12,238.07,35.88]
[1757922888929,0.03,238.12,237.95,33.65559401]
[1757922888930,13.59559401,238.1,238.04,26.0]
[1757922889459,13.59559401,238.1,238.03,26.71]
[1757922890252,0.75,238.11,238.04,0.71]
[1757922890253,0.03,238.11,238.04,0.71]
[1757922890841,4.91997265,238.1,238.0,0.71]
[1757922891051,13.59559401,238.09,237.98,0.71]
[1757922891238,13.59559401,238.07,238.0,26.0]
[1757922891552,13.59559401,238.07,238.0,26.71]
[1757922892452,13.59559401,238.07,238.01,4.20150413]
[1757922893345,13.59559401,238.05,237.95,0.77]
[1757922893543,13.59559401,238.05,237.98,26.0]
[1757922893955,13.59559401,238.05,237.96,4.91238695]
[1757922893956,13.59559401,238.05,237.99,26.0]
[1757922894554,13.59559401,238.05,238.0,4.20168067]
[1757922894762,0.72,238.05,238.0,4.20168067]
[1757922895259,0.72,238.05,238.0,4.91168067]
[1757922895653,13.59559401,238.04,238.0,4.91168067]
[1757922895848,13.59559401,238.04,238.01,0.71]
[1757922896045,13.59559401,238.09,238.01,0.71]
[1757922896458,0.03,238.11,238.04,4.20097462]
[1757922896662,0.03,238.11,238.04,4.91097462]
[1757922896863,0.03,238.11,238.04,15.41341118]
[1757922898360,0.69,238.11,238.04,4.91097462]
[1757922898868,13.59559401,238.09,238.02,4.20122712]
[1757922899169,0.66,238.08,238.02,4.20122712]
[1757922900166,0.03,238.11,238.03,0.71]
[1757922900371,0.66,238.1,238.04,4.20097462]
[1757922900874,0.03,238.11,238.05,0.71]
[1757922901080,0.66,238.1,238.03,26.0]
[1757922901383,13.59559401,238.09,238.02,4.91121652]
[1757922901587,0.03,238.11,238.03,0.71]
[1757922901765,0.03,238.11,238.05,26.0]
[1757922901970,0.03,238.11,238.06,0.71]
[1757922902361,0.03,238.11,238.07,14.70155835]
[1757922902672,0.03,238.11,238.07,0.71]
[1757922902854,0.03,238.11,238.08,0.71]
[1757922903768,0.03,238.11,238.04,40.70325636]
[1757922903769,0.03,238.11,238.09,0.71]
[1757922904170,0.03,238.11,238.04,40.70325636]
[1757922904377,0.03,238.11,238.08,4.20026881]
[1757922904572,0.03,238.11,238.05,4.20079815]
[1757922904768,0.03,238.11,238.07,0.71]
[1757922904969,0.03,238.11,238.06,36.02]
[1757922905167,0.03,238.11,238.06,36.73]
[1757922905386,0.03,238.11,238.07,0.71]
[1757922905885,0.03,238.11,238.08,4.20026881]
[1757922906057,0.03,238.11,238.08,4.91026881]
[1757922906256,0.03,238.11,238.09,0.71]
[1757922906977,0.03,238.12,238.1,26.0]
[1757922907177,0.03,238.12,238.11,26.0]
[1757922907367,0.03,238.12,238.11,26.71]
[1757922908195,0.03,238.12,238.11,0.71]
[1757922908386,0.03,238.12,238.11,40.86973961]
[1757922908584,0.03,238.12,238.11,30.90973961]
[1757922908787,0.03,238.12,238.11,66.84973961]
[1757922910693,0.03,238.12,238.11,26.0]
[1757922910893,0.03,238.12,238.1,36.22]
[1757922911888,0.03,238.12,238.11,36.2]
[1757922913097,0.03,238.12,238.11,36.92]
[1757922913270,0.03,238.12,238.11,36.2]
[1757922913872,0.03,238.12,238.11,0.72]
[1757922914170,0.03,238.12,238.1,4.19982664]
[1757922914385,0.03,238.12,238.1,4.91982664]
[1757922914781,0.03,238.12,238.1,4.19982664]
[1757922914985,0.03,238.12,238.11,0.72]
[1757922915777,0.03,238.12,238.11,26.0]
[1757922915979,0.03,238.12,238.11,26.72]
[1757922917620,0.03,238.12,238.11,30.91973961]
[1757922921101,1e-08,238.14,238.12,26.0]
[1757922921309,1e-08,238.14,238.13,61.92]
[1757922921478,1e-08,238.14,238.13,61.9]
[1757922921686,1e-08,238.14,238.13,30.91938688]
[1757922921893,1e-08,238.14,238.13,66.91938688]
[1757922922513,1e-08,238.14,238.13,30.91938688]
[1757922922704,1e-08,238.14,238.13,66.87938688]
[1757922924525,1e-08,238.14,238.13,66.81938688]
[1757922925392,1e-08,238.14,238.13,66.79938688]
[1757922925795,1e-08,238.14,238.13,66.77938688]
[1757922926017,1e-08,238.17,238.13,77.2778541]
[1757922926218,1e-08,238.17,238.15,4.19903422]
[1757922926427,1e-08,238.17,238.16,35.84]
[1757922927100,1e-08,238.17,238.16,35.82]
[1757922928519,1e-08,238.17,238.16,40.01885791]
[1757922928727,0.72000001,238.17,238.16,35.76]
[1757922928905,0.72000001,238.17,238.13,30.19926877]
[1757922929102,0.72000001,238.17,238.16,26.0]
[1757922929417,0.72000001,238.17,238.16,61.74]
[1757922929612,0.72000001,238.17,238.13,4.19926877]
[1757922929816,0.72,238.16,238.14,35.74]
[1757922930025,0.72,238.15,238.14,35.74]
[1757922930231,0.72,238.15,238.14,35.72]
[1757922930633,0.72,238.15,238.14,39.91921054]
[1757922931330,1e-08,238.17,238.14,50.41723691]
[1757922932221,1e-08,238.17,238.16,26.0]
[1757922932414,1e-08,238.17,238.16,61.66]
[1757922933239,1e-08,238.17,238.16,65.85885791]
[1757922934642,1e-08,238.17,238.11,10.55919924]
[1757922934947,13.59559401,238.15,238.12,35.58]
[1757922935123,13.59559401,238.13,238.11,0.06]
[1757922935316,13.59559401,238.13,238.12,35.56]
[1757922935514,14.27559401,238.13,238.12,35.56]
[1757922936331,14.27559401,238.13,238.12,39.75956324]
[1757922936524,14.27559401,238.13,238.12,39.71956324]
[1757922936934,1e-08,238.17,238.12,39.71956324]
[1757922937164,1e-08,238.17,238.13,35.5]
[1757922937459,1e-08,238.17,238.14,4.19921054]
[1757922937658,1e-08,238.17,238.15,35.52]
[1757922937962,1e-08,238.17,238.15,36.19]
[1757922938155,1e-08,238.17,238.15,35.52]
[1757922938360,1e-08,238.17,238.14,14.69723691]
[1757922938654,1e-08,238.17,238.15,35.52]
[1757922938854,1e-08,238.17,238.16,61.52]
[1757922939362,1e-08,238.17,238.16,65.71885791]
[1757922939737,1e-08,238.17,238.16,4.19885791]
[1757922939966,1e-08,238.17,238.16,39.69885791]
[1757922941768,1e-08,238.17,238.16,39.63885791]
[1757922942067,1e-08,238.17,238.16,35.44]
[1757922942360,1e-08,238.17,238.16,26.0]
[1757922942588,0.70000001,238.17,238.16,61.44]
[1757922942736,1e-08,238.17,238.16,61.44]
[1757922943542,1e-08,238.17,238.16,26.0]
[1757922943844,1e-08,238.17,238.16,62.13]
[1757922944660,1e-08,238.17,238.16,26.71]
[1757922944969,1e-08,238.17,238.16,62.11]
[1757922945764,1e-08,238.17,238.16,66.30885791]
[1757922947564,1e-08,238.2,238.16,76.80600268]
[1757922947746,1e-08,238.2,238.18,4.19850533]
[1757922947948,1e-08,238.2,238.19,35.32]
[1757922948154,1e-08,238.2,238.19,36.03]
[1757922948963,1e-08,238.2,238.19,35.99]
[1757922949267,1e-08,238.2,238.19,0.71]
[1757922949773,1e-08,238.2,238.19,35.99]
[1757922949944,1e-08,238.2,238.19,40.18832906]
[1757922950939,1e-08,238.26,238.22,26.0]
[1757922951144,1e-08,238.26,238.25,26.0]
[1757922951360,1e-08,238.26,238.25,61.24]
[1757922951649,1e-08,238.26,238.25,61.95]
[1757922951860,1e-08,238.26,238.25,66.14727177]
[1757922952472,1e-08,238.26,238.25,4.19727177]
[1757922952787,0.70000001,238.26,238.25,39.43727177]
[1757922953765,0.70000001,238.26,238.25,35.24]
[1757922953985,0.70000001,238.26,238.25,47.80843087]
[1757922954569,1e-08,238.26,238.25,47.76843087]
[1757922956056,1e-08,238.26,238.25,51.96570264]
[1757922957066,1e-08,238.26,238.25,42.80570264]
[1757922957387,1e-08,238.26,238.25,77.94570264]
[1757922957994,1e-08,238.26,238.25,42.80570264]
[1757922958170,1e-08,238.26,238.25,77.88570264]
[1757922958561,1e-08,238.26,238.25,77.86570264]
[1757922959479,1e-08,238.26,238.25,77.82570264]
[1757922960193,1e-08,238.26,238.25,42.80570264]
[1757922960508,1e-08,238.26,238.25,77.82570264]
[1757922960866,1e-08,238.26,238.25,42.80570264]
[1757922961062,1e-08,238.26,238.25,77.78570264]
[1757922961778,0.69000001,238.26,238.25,42.80570264]
[1757922961982,1e-08,238.26,238.25,52.48570264]
[1757922962385,0.1,238.36,238.29,4.1965672]
[1757922962598,0.1,238.36,238.33,26.0]
[1757922962809,0.1,238.36,238.34,34.96]
[1757922963815,0.1,238.36,238.35,4.1955108]
[1757922964516,0.1,238.36,238.35,34.92]
[1757922964517,0.79,238.36,238.35,34.92]
[1757922964812,0.79,238.36,238.32,26.0]
[1757922965011,0.69,238.35,238.32,26.0]
[1757922965218,0.69,238.35,238.29,10.49103893]
[1757922965219,0.69,238.34,238.33,34.92]
[1757922965780,0.69,238.34,238.26,4.1970956]
[1757922965988,13.59559401,238.32,238.27,34.9]
[1757922966296,13.59559401,238.3,238.28,34.9]
[1757922966496,0.69,238.29,238.28,34.9]
[1757922966917,0.69,238.29,238.22,4.19780035]
[1757922967121,0.69,238.28,238.23,34.9]
[1757922967337,0.69,238.27,238.23,47.27532753]
[1757922967640,13.59559401,238.3,238.23,47.27532753]
[1757922967641,0.69,238.26,238.23,47.27532753]
[1757922968146,0.69,238.26,238.24,4.19744795]
[1757922968340,0.69,238.28,238.25,34.88]
[1757922968647,0.69,238.27,238.25,34.88]
[1757922969741,0.69,238.27,238.24,4.19744795]
[1757922969954,4.19627619,238.31,238.24,4.19744795]
[1757922969955,4.19627619,238.31,238.26,34.86]
[1757922970444,13.59559401,238.29,238.26,34.86]
[1757922970651,13.59559401,238.29,238.21,4.19797657]
[1757922970652,13.59559401,238.27,238.21,4.19797657]
[1757922970816,13.59559401,238.27,238.22,34.82]
[1757922971017,13.59559401,238.25,238.22,34.82]
[1757922971218,0.72,238.24,238.22,34.82]
[1757922971616,0.72,238.23,238.22,34.82]
[1757922972719,0.72,238.26,238.22,34.82]
[1757922972928,13.59559401,238.32,238.21,4.19797657]
[1757922972929,0.72,238.25,238.21,4.19797657]
[1757922973151,14.31559401,238.24,238.23,34.82]
[1757922974719,13.59559401,238.23,238.22,34.82]
[1757922975044,14.31559401,238.23,238.22,34.82]
[1757922976530,13.59559401,238.25,238.22,34.82]
[1757922976864,14.31559401,238.25,238.22,39.01779265]
[1757922977034,13.59559401,238.23,238.22,39.01779265]
[1757922977958,0.72,238.27,238.22,39.01779265]